Cogmind - Beta 10.1 @@@ ROGUE MODE // 2020.10.06 @ 21:07:06 // Winter2019/RPGLIKE Player: Hermelin Result: Destroyed by P-80 Master with Gamma Rifle Performance ------------- Evolutions (8) 4000 Regions Visited (22) 4400 Robots Destroyed (527) 2635 Value Destroyed (21171) 21171 Prototype IDs (56) 1120 Alien Tech Used (0) 0 Bonus (13516) 13516 TOTAL SCORE: 46842 Bonus ------- High Alert Combat Kills 9484 Follower Combat Kills 261 Entered Garrisons 1400 Used RIF Installer 3000 Aligned with FarCom 300 Friendly Fire -929 Cogmind --------- Core Integrity 0/1650 Matter 163/300 Energy 0/1080 System Corruption 2% Temperature Cool (0) Movement Immobile (Siege) Location -2/Garrison Parts ------- > --- POWER (2) -------- Heavy Antimatter Reactor Heavy Antimatter Reactor > --- PROPULSION (3) --- Biometal Medium Treads Biometal Heavy Treads > --- UTILITY (14) ----- Experimental Cooling System Energy Well Advanced Signal Interpreter Advanced Terrain Scanner Improved Armor Integrity Analyzer Precision Matter Filter Advanced Weapon Cycler Advanced Thermal Defense Suite Improved Shield Generator Relay Coupler [NC] (23) Relay Coupler [Grunt] (5) Relay Coupler [Brawler] (56) Relay Coupler [Sentry] (23) Relay Coupler [Hunter] (19) > --- WEAPON (5) ------- Enhanced Quantum Rifle Long-range Proton Cannon 99-TNT's Nukerbomber Advanced Remote Datajack > --- INVENTORY (5) ---- Experimental Matter Compressor (276) Experimental Shock Absorption System System Purifier Long-range Tractor Beam Field Lobotomy Kit Peak State ------------ > --- POWER ------------ Heavy Antimatter Reactor Heavy Antimatter Reactor > --- PROPULSION ------- Biometal Medium Treads Biometal Heavy Treads > --- UTILITY ---------- Experimental Cooling System Advanced Signal Interpreter Advanced Terrain Scanner Advanced Launcher Guidance Computer Improved Armor Integrity Analyzer Precision Matter Filter Advanced Weapon Cycler Advanced Thermal Defense Suite Experimental Shock Absorption System Improved Shield Generator Relay Coupler [NC] Relay Coupler [Grunt] Relay Coupler [Sentry] Relay Coupler [Hunter] > --- WEAPON ----------- Enhanced Quantum Rifle Long-range Proton Cannon 99-TNT's Nukerbomber Advanced Remote Datajack > --- INVENTORY -------- Experimental Matter Compressor Relay Coupler [Brawler] System Purifier Long-range Tractor Beam Field Lobotomy Kit [Rating: 165] Favorites ----------- Power Heavy Antimatter Reactor Engine Light Angular Momentum Engine Power Core Reinforced Fission Core Reactor Heavy Antimatter Reactor Propulsion Armored Treads Treads Armored Treads Leg Advanced Myomer Leg Wheel Wheel Utility Advanced Weapon Cycler Device Advanced Weapon Cycler Storage Energy Well Processor Improved Armor Integrity Analyzer Hackware Relay Coupler [Grunt] Protection Hardened Medium Armor Plating Weapon 8R-AWN's Boregun Energy Gun Cooled Pulse Rifle Energy Cannon Long-range Proton Cannon Ballistic Gun 8R-AWN's Boregun Launcher 99-TNT's Nukerbomber Special Weapon Improved Remote Datajack Build | -11 -10 -10 -9 -9 -9 -8 -8 -8 -8 -8 -7 -6 -6 -6 -6 -5 -5 -4 -4 -3 -2 -2 ------- Run | Scr Mat Min Mat Min Exi Min Mat Gar Mat Gar Fac Fac Gar Fac Gar Fac Gar Fac Gar Res Res Gar Slots Evolved 20 | 3 2 1 1 3 . 1 2 . 1 . . 1 1 . . . . 1 1 1 1 . Power 1 | . . . . 1 . . . . . . . . . . . . . . . . . . Propulsion 2 | 1 . . . . . . 1 . . . . . . . . . . . . . . . Utility 13 | 1 1 1 1 2 . . 1 . 1 . . 1 1 . . . . 1 1 1 . . Weapon 4 | 1 1 . . . . 1 . . . . . . . . . . . . . . 1 . Parts Attached 211 | 8 6 6 25 15 27 10 18 1 7 . 5 3 2 2 15 6 2 12 4 24 5 8 Power 10 | 1 . . 1 2 1 1 1 . . . . . . . 1 . . 1 . 1 . . Engine 4 | 1 . . 1 2 . . . . . . . . . . . . . . . . . . Core 2 | . . . . . 1 . 1 . . . . . . . . . . . . . . . Reactor 4 | . . . . . . 1 . . . . . . . . 1 . . 1 . 1 . . Propulsion 27 | 3 . 1 5 . 3 . 5 . 2 . . . . . 3 1 . 1 . 2 1 . Treads 19 | . . . 3 . 1 . 5 . 2 . . . . . 3 1 . 1 . 2 1 . Leg 2 | . . . . . 2 . . . . . . . . . . . . . . . . . Wheel 6 | 3 . 1 2 . . . . . . . . . . . . . . . . . . . Hover . | . . . . . . . . . . . . . . . . . . . . . . . Flight . | . . . . . . . . . . . . . . . . . . . . . . . Utility 109 | 1 2 3 7 7 18 7 10 1 1 . 4 3 2 2 10 3 2 8 4 8 2 4 Device 76 | 1 . . 4 4 12 4 7 1 1 . 4 3 . 2 9 3 2 7 2 7 2 1 Storage 5 | . . 1 . . . 1 1 . . . . . . . . . . 1 . . . 1 Processor 6 | . . . . 2 . 2 1 . . . . . . . . . . . . 1 . . Hackware 6 | . . . . . . . . . . . . . 2 . 1 . . . 1 . . 2 Protection 16 | . 2 2 3 1 6 . 1 . . . . . . . . . . . 1 . . . Artifact . | . . . . . . . . . . . . . . . . . . . . . . . Weapon 65 | 3 4 2 12 6 5 2 2 . 4 . 1 . . . 1 2 . 2 . 13 2 4 Energy Gun 17 | . . . 3 . 2 1 1 . 4 . 1 . . . . 2 . 1 . 1 1 . Energy Cannon 5 | . . . . . . . . . . . . . . . . . . . . 3 . 2 Ballistic Gun 25 | 3 4 1 5 3 3 . 1 . . . . . . . 1 . . . . 4 . . Ballistic Cannon . | . . . . . . . . . . . . . . . . . . . . . . . Launcher 9 | . . 1 4 3 . 1 . . . . . . . . . . . . . . . . Special Weapon 9 | . . . . . . . . . . . . . . . . . . 1 . 5 1 2 Impact Weapon . | . . . . . . . . . . . . . . . . . . . . . . . Slashing Weapon . | . . . . . . . . . . . . . . . . . . . . . . . Piercing Weapon . | . . . . . . . . . . . . . . . . . . . . . . . Special Melee Weapon . | . . . . . . . . . . . . . . . . . . . . . . . Unidentified Prototypes 24 | . . . 3 1 7 5 1 . 1 . . . . . . 1 . 2 . 2 1 . Parts Lost 7 | . . . . . 1 . 1 . 2 . . . . . . . . 1 . . . 2 Power . | . . . . . . . . . . . . . . . . . . . . . . . Propulsion . | . . . . . . . . . . . . . . . . . . . . . . . Utility 4 | . . . . . 1 . 1 . . . . . . . . . . 1 . . . 1 Weapon 3 | . . . . . . . . . 2 . . . . . . . . . . . . 1 Highest Loss Streak 2 | . . . . . 1 . 1 . 1 . . . . . . . . 1 . . . 2 Average Slot Usage (%) 94 | . 96 100 99 98 98 93 93 94 93 94 94 94 93 95 93 94 95 90 89 90 90 89 Engine 3 | . 12 10 9 14 10 . . . . . . . . . . . . . . . . . Core 3 | . . . . . 3 6 5 5 5 5 5 5 5 5 5 5 5 4 4 . . . Reactor 3 | . . . . . . 5 5 5 5 5 5 5 5 5 4 5 5 3 4 8 8 8 Treads 13 | . . . 15 14 13 13 14 17 16 16 16 15 15 15 14 15 15 10 9 8 8 8 Wheel 1 | . 24 21 2 . . . . . . . . . . . . . . . . . . . Device 27 | . 12 10 17 19 28 34 30 29 32 33 33 35 34 30 29 29 30 27 30 28 29 27 Processor 11 | . . . . 3 5 10 16 17 16 16 16 15 15 15 15 15 15 14 13 13 12 10 Hackware 3 | . . . . . . . . . . . . . 4 10 10 10 10 9 9 13 12 15 Protection 6 | . 15 21 25 22 13 . . . . . . . . . . . . . . 4 4 . Energy Gun 4 | . . . 7 7 6 6 5 5 4 5 5 5 5 5 5 5 5 1 4 2 4 4 Ballistic Gun 9 | . 31 31 19 13 12 6 5 5 5 5 5 5 5 5 4 5 5 4 4 2 4 . Launcher 3 | . . . . 1 2 5 5 5 5 5 5 5 5 5 5 5 5 4 4 4 4 4 Naked Turns . | . . . . . . . . . . . . . . . . . . . . . . . Heaviest Build 106 | 10 21 30 34 50 106 90 91 88 88 88 92 95 92 92 91 92 94 96 96 101 99 105 Greatest Support 115 | 26 20 26 43 43 43 43 66 63 63 60 65 65 65 65 65 72 72 107 107 110 115 115 Greatest Overweight (x) 6 | . 1 2 2 1 3 2 2 1 1 1 1 1 1 1 6 1 1 1 . . . . Average Overweight (x) . | . . 1 . . . 1 1 1 1 1 1 1 1 1 1 1 1 . . . . . Largest Inventory Capacity 5 | 2 2 2 4 4 4 4 4 4 4 4 4 4 4 5 5 5 5 5 5 5 5 5 Average Capacity 4 | 1 2 2 3 4 4 4 4 4 4 4 4 4 4 4 5 5 5 5 5 5 5 5 Most Carried 5 | 2 2 2 4 4 4 4 4 4 4 4 4 4 4 5 5 5 5 5 5 5 5 5 Average Carried 3 | . 1 1 3 3 3 3 3 4 3 3 4 3 3 4 4 4 4 4 4 4 4 4 Final Capacity 5 | 2 2 2 4 4 4 4 4 4 4 4 4 4 4 5 5 5 5 5 5 5 5 5 Final Carried 5 | 2 2 2 4 4 4 4 4 4 3 4 4 4 4 5 5 5 5 5 5 5 5 5 Class Distribution -------------------- 66% | Scavenger-Mutant 14% | Tank 8% | Mutant 5% | Scavenger-Skirmisher 3% | Scavenger-Tank Dominant Class ---------------- Tank | -10/Materials Tank | -10/Mines Tank | -9/Materials Tank | -9/Mines Scavenger-Mutant | -9/Exiles Scavenger-Mutant | -8/Mines Scavenger-Mutant | -8/Materials Scavenger-Mutant | -8/Garrison Scavenger-Mutant | -8/Materials Scavenger-Mutant | -8/Garrison Scavenger-Mutant | -7/Factory Scavenger-Mutant | -6/Factory Scavenger-Mutant | -6/Garrison Scavenger-Mutant | -6/Factory Scavenger-Mutant | -6/Garrison Scavenger-Mutant | -5/Factory Scavenger-Mutant | -5/Garrison Scavenger-Mutant | -4/Factory Scavenger-Skirmisher | -4/Garrison Scavenger-Skirmisher | -3/Research Scavenger-Mutant | -2/Research Bothacker-Mutant | -2/Garrison Resources | -11 -10 -10 -9 -9 -9 -8 -8 -8 -8 -8 -7 -6 -6 -6 -6 -5 -5 -4 -4 -3 -2 -2 ----------- Run | Scr Mat Min Mat Min Exi Min Mat Gar Mat Gar Fac Fac Gar Fac Gar Fac Gar Fac Gar Res Res Gar Matter Collected 15511 | 304 599 544 713 321 1148 641 1826 484 516 222 554 272 1002 822 1077 478 1114 1042 450 1080 . 302 Remotely 9044 | . . . . . . 455 1397 484 516 222 554 272 702 822 766 197 710 747 450 631 . 119 Salvage Created 18217 | 104 875 600 1071 330 430 621 2163 668 1134 884 1318 409 1281 994 868 249 1087 654 538 1813 . 126 Parts 1004 | 6 55 11 67 49 69 25 114 31 58 44 64 19 53 69 33 19 42 47 36 80 . 13 Haulers Intercepted 17 | . 2 . 5 . . . 4 . 4 . . . . . . . . 2 . . . . Recyclers Shooed 10 | . 1 1 . . . 2 1 . 1 . . 1 . 1 . 1 . . . 1 . . Parts Field Recycled . | . . . . . . . . . . . . . . . . . . . . . . . Retrieved Matter . | . . . . . . . . . . . . . . . . . . . . . . . Parts Self-Destructed . | . . . . . . . . . . . . . . . . . . . . . . . Prevented . | . . . . . . . . . . . . . . . . . . . . . . . Kills | -11 -10 -10 -9 -9 -9 -8 -8 -8 -8 -8 -7 -6 -6 -6 -6 -5 -5 -4 -4 -3 -2 -2 ------- Run | Scr Mat Min Mat Min Exi Min Mat Gar Mat Gar Fac Fac Gar Fac Gar Fac Gar Fac Gar Res Res Gar Combat Hostiles Destroyed 415 | . 16 12 22 22 6 6 45 20 22 18 24 13 22 31 20 8 24 14 26 41 . 3 Guns 238 | . 16 9 12 8 2 2 32 12 19 11 18 6 12 17 8 5 17 9 6 15 . 2 Cannons 3 | . . . . . . . . . . . . . . . . . . . . 3 . . AOE 171 | . . 3 10 14 4 4 13 8 3 7 5 7 10 14 11 3 7 5 20 22 . 1 Classes Destroyed 22 | 2 6 1 1 2 2 1 1 . . . 2 1 1 1 . . . 1 . . . . Worker 24 | . 2 . . 4 . 2 1 . 1 . 1 3 . 3 . . . 5 . 2 . . Builder 11 | . . . . 1 . . 3 . 1 . . 2 . 1 . . . . . 3 . . Tunneler 5 | 1 . . . 1 . 3 . . . . . . . . . . . . . . . . Hauler 17 | . 2 . 5 . . . 4 . 4 . . . . . . . . 2 . . . . Recycler 21 | 1 1 6 2 3 . 2 1 . 2 . 1 . . 1 . . . . . 1 . . Carrier 2 | . . . . . . . . . . . . . 1 1 . . . . . . . . Mechanic 3 | . . . . . . . . . . . 1 . . . . . 1 . . 1 . . Operator 6 | . 1 . 2 . . . 1 . . . 1 . . . . . . . . 1 . . Turret 1 | . . . . . 1 . . . . . . . . . . . . . . . . . Watcher 13 | . 3 . 2 . . . 2 . 2 . 1 1 . . . . . . . 2 . . Swarmer 101 | . 6 3 11 17 . 4 13 7 2 7 4 3 . 4 6 . . 4 8 2 . . Saboteur 2 | . . . . . . . . . . . . 1 . . . . . . . 1 . . Grunt 179 | . 10 . 6 2 . . 20 12 13 6 12 5 18 9 8 . 20 1 15 21 . 1 Brawler 9 | . . . . . . . 1 1 . . . 1 . 3 1 . . . . 2 . . Duelist 11 | . . . . 1 . . . . . . 1 1 1 3 2 . . . . 2 . . Protector 3 | . . . . . . . . . . . . . . 2 . . . . . 1 . . Sentry 40 | . . . 5 2 . . 10 . 6 5 2 1 3 1 1 . . 1 2 1 . . Hunter 29 | . . . . . . 1 1 . 1 . 4 1 . 5 2 4 . 2 . 8 . . Programmer 22 | . . . . . . . . . . . 1 . . 4 . 4 4 6 . 2 . 1 Behemoth 4 | . . . . . . . . . . . . . . . . . . 1 1 1 . 1 Zionite 3 | . . . . . 3 . . . . . . . . . . . . . . . . . Assembled 16 | . . 9 . . 7 . . . . . . . . . . . . . . . . . Best Kill Streak 21 | 2 5 3 6 9 5 4 6 7 5 6 7 9 5 8 6 6 7 10 21 17 . 2 Combat Bots Only 21 | . 4 3 6 7 5 4 6 7 5 6 5 5 4 7 6 6 7 5 21 11 . 2 Max Kills in Single Turn 7 | 1 2 1 3 3 4 4 4 4 5 4 5 5 5 7 4 2 4 6 7 4 . 1 Gunslinging 1 | . . . . . . . 1 . . . . . . . . . . . . . . . Exploded 7 | . . 1 2 3 4 4 4 4 2 4 4 4 4 4 4 2 3 3 7 3 . 1 Melee . | . . . . . . . . . . . . . . . . . . . . . . . Uniques/NPCs Destroyed 5 | . . . . . 4 1 . . . . . . . . . . . . . . . . 8R-AWN (-9/Exiles) EX-HEX (-9/Exiles) EX-DEC (-9/Exiles) EX-BIN (-9/Exiles) 99-TNT (-8/Mines) Combat | -11 -10 -10 -9 -9 -9 -8 -8 -8 -8 -8 -7 -6 -6 -6 -6 -5 -5 -4 -4 -3 -2 -2 -------- Run | Scr Mat Min Mat Min Exi Min Mat Gar Mat Gar Fac Fac Gar Fac Gar Fac Gar Fac Gar Res Res Gar Damage Taken 15935 | . 367 409 599 388 998 660 1435 334 521 250 843 351 489 887 682 908 746 789 626 2071 . 1582 Core 11899 | . 260 265 372 230 632 459 1132 261 404 193 658 270 385 684 533 710 589 617 494 1526 . 1225 Absorbed by Shields 4426 | . . . . 121 371 144 . 133 200 100 309 132 178 331 227 297 272 274 230 707 . 400 Reduced by Siege Mode 13 | . . . . . . . . . . . . . . . . . . . . . . 13 Redirected to Core 10962 | . 197 193 336 215 576 421 1001 249 382 181 623 270 357 662 511 682 561 617 460 1383 . 1085 Core Remaining (%) 58 | 100 . 72 . . . 18 . . . 90 84 . . . 79 . 53 . 18 8 . . Volleys Fired 1265 | 4 48 43 54 37 93 36 136 38 65 35 60 41 87 89 44 28 68 68 34 115 . 42 Largest 3 | 2 3 3 3 3 3 3 2 3 2 2 2 2 3 2 2 2 2 2 2 3 . 2 Hottest 205 | 40 69 69 91 91 91 150 105 135 105 75 75 50 80 50 60 50 60 50 50 205 . 175 Shots Fired 2252 | 8 118 108 132 67 184 75 247 74 110 60 102 66 131 165 72 41 130 74 57 174 . 57 Gun 2077 | 8 118 105 125 58 182 74 240 70 109 59 99 64 127 159 67 36 127 60 47 109 . 34 Cannon 45 | . . . . . . . . . . . . . . . . . . . . 36 . 9 Launcher 98 | . . 3 7 9 2 1 7 4 1 1 3 2 4 6 5 5 3 4 10 17 . 4 Special 32 | . . . . . . . . . . . . . . . . . . 10 . 12 . 10 Kinetic 1289 | 8 118 105 98 32 157 35 111 35 62 26 51 26 62 83 37 23 62 54 23 73 . 8 Thermal 612 | . . . . . . 35 129 35 4 . 30 38 65 76 30 13 65 6 24 36 . 26 Explosive 98 | . . 3 7 9 2 1 7 4 1 1 3 2 4 6 5 5 3 4 10 17 . 4 Electromagnetic 221 | . . . 27 26 25 4 . . 43 33 18 . . . . . . . . 36 . 9 Robot Hit Streak 27 | 3 12 6 14 12 26 7 14 15 12 16 16 14 17 14 10 11 18 8 24 27 . 24 Robot Miss Streak 11 | 1 11 5 4 7 2 2 4 4 5 2 4 3 2 3 3 2 3 4 2 3 . 2 Penetration Max 2 | . . . . . 1 1 2 1 2 2 2 1 2 2 1 1 1 1 1 1 . . Secondary Targets 25 | . 1 4 1 2 2 . 5 . 1 . 3 . . 2 1 . . . 1 1 . 1 Max Gunslinging Chain 1 | . 1 1 1 1 1 . 1 . 1 . 1 . . 1 1 . . . 1 1 . 1 Shots Hit Robots 1541 | 5 65 60 93 41 150 50 154 43 80 46 75 49 91 122 49 31 79 48 42 126 . 42 Core Hits 961 | 3 37 29 51 36 51 24 82 31 59 32 54 33 68 65 41 15 51 33 55 99 . 12 Critical Hits 273 | . . 1 . 1 9 5 31 9 21 12 15 9 30 30 13 7 18 27 3 31 . 1 Critical Kills 97 | . . . . 1 4 1 14 4 7 5 8 2 8 9 4 2 7 6 1 14 . . Critical Parts Destroyed 166 | . . 1 . . 4 . 17 4 11 7 7 7 22 21 9 5 11 21 2 16 . 1 Melee Attacks . | . . . . . . . . . . . . . . . . . . . . . . . Impact . | . . . . . . . . . . . . . . . . . . . . . . . Slashing . | . . . . . . . . . . . . . . . . . . . . . . . Piercing . | . . . . . . . . . . . . . . . . . . . . . . . Sneak Attacks . | . . . . . . . . . . . . . . . . . . . . . . . Combat Hostiles . | . . . . . . . . . . . . . . . . . . . . . . . Follow-up Attacks . | . . . . . . . . . . . . . . . . . . . . . . . Damage Inflicted 66442 | 71 967 985 2158 1693 2281 1335 5476 2504 2695 1646 2441 3036 3793 5991 3166 1601 3132 2759 5555 11028 . 2129 Guns 26944 | 71 967 756 1325 500 1903 784 3245 987 1666 946 1527 920 1837 2421 914 485 1592 863 569 1875 . 791 Cannons 967 | . . . . . . . . . . . . . . . . . . . . 820 . 147 Explosions 38408 | . . 229 833 1193 378 551 2231 1517 1001 700 896 2116 1956 3550 2252 1116 1540 1896 4986 8276 . 1191 Melee . | . . . . . . . . . . . . . . . . . . . . . . . Ramming 123 | . . . . . . . . . 28 . 18 . . 20 . . . . . 57 . . Kinetic 14313 | 71 967 756 877 187 1791 186 1191 430 883 459 715 306 982 1144 417 262 592 751 225 1071 . 50 Thermal 11362 | . . . 119 156 . 614 2054 557 297 136 557 769 855 1277 497 223 1000 112 344 1054 . 741 Explosive 37131 | . . 229 714 1037 378 486 2231 1517 745 564 854 1863 1956 3550 2252 1116 1540 1896 4986 8026 . 1191 Electromagnetic 3513 | . . . 448 313 112 49 . . 742 487 297 98 . . . . . . . 820 . 147 Impact . | . . . . . . . . . . . . . . . . . . . . . . . Slashing . | . . . . . . . . . . . . . . . . . . . . . . . Piercing . | . . . . . . . . . . . . . . . . . . . . . . . Highest Corruption 5 | . . . . . 3 . 4 . . . 1 . . 1 1 1 2 5 . 2 . 2 Average Corruption 1 | . . . . . 2 . 2 . . . 1 . . 1 1 1 1 2 . 1 . 1 Corruption Purged 27 | . . . . . 3 . 6 . . . 1 . . 2 1 1 2 7 . 4 . . Effects 26 | . . . . . 8 . 3 . . . . . . 1 2 1 2 7 . 1 . 1 Message Errors 7 | . . . . . 1 . . . . . . . . 1 2 . 1 1 . . . 1 Matter Fused 3 | . . . . . 1 . . . . . . . . . . . . 2 . . . . Heat Flow Errors 1 | . . . . . 1 . . . . . . . . . . . . . . . . . Energy Discharges 4 | . . . . . . . 2 . . . . . . . . 1 . . . 1 . . Data Loss (minor) 4 | . . . . . 2 . 1 . . . . . . . . . . 1 . . . . Targeting Errors 4 | . . . . . 2 . . . . . . . . . . . . 2 . . . . Weapon Failures 3 | . . . . . 1 . . . . . . . . . . . 1 1 . . . . Overload Shots . | . . . . . . . . . . . . . . . . . . . . . . . Overflow Damage 3077 | . . 11 20 78 12 42 330 261 160 70 173 261 95 244 2 135 82 79 326 689 . 7 Projectiles 60 | . . . . . . . . . . . . . . . . . . . . 60 . . Explosions 2995 | . . 11 20 78 12 42 330 261 160 70 170 261 95 244 2 135 82 79 326 610 . 7 Melee 22 | . . . . . . . . . . . 3 . . . . . . . . 19 . . Knockbacks 1 | . . . . . . . . . . . 1 . . . . . . . . . . . Impact 1 | . . . . . . . . . . . 1 . . . . . . . . . . . Kinetic . | . . . . . . . . . . . . . . . . . . . . . . . Secondary . | . . . . . . . . . . . . . . . . . . . . . . . Self-Inflicted Damage 1194 | . . . 120 132 . 21 50 95 81 66 138 . 12 64 17 88 38 42 25 153 . 52 Shots 47 | . . . 4 5 . 2 4 1 4 2 2 . 1 4 2 1 3 2 2 7 . 1 Rammed 7 | . 1 . . . . . . . 2 . 1 . . 1 . . . . . 2 . . Targets Rammed 8 | . 1 . . . . . . . 3 . 1 . . 1 . . . . . 2 . . Kicked . | . . . . . . . . . . . . . . . . . . . . . . . Crushed 1 | . . . . . . . . . 1 . . . . . . . . . . . . . Highest Temperature 481 | . 228 481 57 6 16 90 173 14 . . . . . . . . . 18 . 186 . 323 Average Temperature 77 | . 74 165 22 6 7 29 25 10 . . . . . . . . . 11 . 38 . 86 Received Heat Transfer 2940 | . 105 60 115 39 . . 603 132 192 84 224 78 172 138 136 . 252 . 73 228 . 309 Effects 5 | . . 5 . . . . . . . . . . . . . . . . . . . . Shutdowns 2 | . . 2 . . . . . . . . . . . . . . . . . . . . Interference 1 | . . 1 . . . . . . . . . . . . . . . . . . . . Matter Decay 1 | . . 1 . . . . . . . . . . . . . . . . . . . . Short Circuit 1 | . . 1 . . . . . . . . . . . . . . . . . . . . Siege Activations 2 | . . . . . . . . . . . . . . . . . . . . 1 . 1 Total Turns 34 | . . . . . . . . . . . . . . . . . . . . 1 . 33 Longest Duration 33 | . . . . . . . . . . . . . . . . . . . . 1 . 33 Robots Corrupted 2 | . . . . . . . . . . . 1 . . . . . . . . 1 . . Combat Hostiles 1 | . . . . . . . . . . . 1 . . . . . . . . . . . Parts Fried 10 | . . . . . . . . . 1 . 3 . . . . . . . . 6 . . Impact Corruptions 2 | . . . . . . . . . . . 1 . . . . . . . . 1 . . Robots Melted 1 | . . . . . . . . . . . . . . . 1 . . . . . . . Combat Hostiles 1 | . . . . . . . . . . . . . . . 1 . . . . . . . Parts Melted 30 | . . . . . . . 2 . . 1 4 2 . 10 3 . 5 . 1 1 . 1 Heat Transferred 18445 | . . . 200 200 . 648 3552 885 374 100 1049 1284 1665 2368 962 407 1887 185 666 1236 . 777 Parts Sabotaged 9 | . . . . . . . . . . . . . . . 9 . . . . . . . Parts Stolen . | . . . . . . . . . . . . . . . . . . . . . . . Parts Stripped . | . . . . . . . . . . . . . . . . . . . . . . . Power Chain Reactions 17 | . . . 3 3 . 1 . . 4 4 1 . . . . . . . . 1 . . Missiles Intercepted . | . . . . . . . . . . . . . . . . . . . . . . . Alert | -11 -10 -10 -9 -9 -9 -8 -8 -8 -8 -8 -7 -6 -6 -6 -6 -5 -5 -4 -4 -3 -2 -2 ------- Run | Scr Mat Min Mat Min Exi Min Mat Gar Mat Gar Fac Fac Gar Fac Gar Fac Gar Fac Gar Res Res Gar Peak Influence 2314 | 10 415 161 491 404 . 132 725 1183 930 1102 1533 999 1380 1398 1655 1156 1441 1246 1595 2314 1301 1236 Initial 1301 | . 6 161 3 94 . . 1 471 576 604 578 736 699 724 978 868 809 756 857 897 1301 975 Average 733 | 2 278 69 294 225 . 61 360 819 726 852 1119 805 1177 867 1365 907 1229 858 1405 1430 1301 1061 Maximum Alert Level 5 | . 2 . 2 2 . . 3 4 3 4 4 3 4 4 5 4 4 4 4 5 4 4 Low Security (%) 15 | 100 17 100 12 35 . 100 15 . . . . . . . . . . . . . . . Level 1 16 | . 77 . 71 59 . . 43 . . . . . . . . . . . . . . . Level 2 13 | . 4 . 15 5 . . 37 41 39 21 16 17 . 10 . . . 16 . . . . Level 3 31 | . . . . . . . 3 53 60 66 28 82 25 76 27 79 15 66 14 32 . 88 Level 4 20 | . . . . . . . . 4 . 11 55 . 73 12 43 20 84 17 85 37 100 11 Level 5 3 | . . . . . . . . . . . . . . . 29 . . . . 29 . . High Security . | . . . . . . . . . . . . . . . . . . . . . . . Max Security . | . . . . . . . . . . . . . . . . . . . . . . . Squads Dispatched 63 | . 4 . 4 . . . 7 . 7 . 8 2 . 9 . 4 . 4 . 14 . . Investigation 19 | . 3 . 2 . . . 5 . . . 5 . . 1 . . . . . 3 . . Extermination 11 | . . . . . . . . . . . 1 . . 3 . 2 . 3 . 2 . . Reinforcement 17 | . 1 . 2 . . . 2 . 3 . 1 1 . 2 . 1 . 1 . 3 . . Assault 10 | . . . . . . . . . 1 . 1 1 . 3 . 1 . . . 3 . . Garrison 6 | . . . . . . . . . 3 . . . . . . . . . . 3 . . Intercept . | . . . . . . . . . . . . . . . . . . . . . . . Construction Impeded 4 | . . . . . . . . . . . . 1 . . . 1 . . . 2 . . Haulers Reinforced . | . . . . . . . . . . . . . . . . . . . . . . . Alert ID Control Effect 3 | . . . . . . . . . . . . . . . . . . 2 . . . 1 Stealth | -11 -10 -10 -9 -9 -9 -8 -8 -8 -8 -8 -7 -6 -6 -6 -6 -5 -5 -4 -4 -3 -2 -2 --------- Run | Scr Mat Min Mat Min Exi Min Mat Gar Mat Gar Fac Fac Gar Fac Gar Fac Gar Fac Gar Res Res Gar Distress Signals 12 | . . . 3 . . . 5 . 2 . . . . . . . . 1 . 1 . . Communications Jammed 120 | . . . . . . . . . . . . 18 . 57 19 . . . . 26 . . Distress Signals 119 | . . . . . . . . . . . . 18 . 56 19 . . . . 26 . . Times Spotted 602 | . 29 14 43 22 62 6 61 17 44 23 27 17 23 39 24 9 23 18 27 61 . 13 Peak Tracking Total 15 | . 4 3 5 4 8 4 4 5 5 4 6 5 4 5 4 4 3 6 15 7 . 3 Tactical Retreats 70 | . . . . . 22 . 7 1 3 5 5 2 9 4 . . 3 . 3 6 . . Traps | -11 -10 -10 -9 -9 -9 -8 -8 -8 -8 -8 -7 -6 -6 -6 -6 -5 -5 -4 -4 -3 -2 -2 ------- Run | Scr Mat Min Mat Min Exi Min Mat Gar Mat Gar Fac Fac Gar Fac Gar Fac Gar Fac Gar Res Res Gar Traps Triggered 37 | . . . 2 . . . 3 2 1 3 2 . 11 2 6 2 3 . . . . . Indirectly . | . . . . . . . . . . . . . . . . . . . . . . . Trap Hack Attempts . | . . . . . . . . . . . . . . . . . . . . . . . Triggered . | . . . . . . . . . . . . . . . . . . . . . . . Disarmed . | . . . . . . . . . . . . . . . . . . . . . . . Reprogrammed . | . . . . . . . . . . . . . . . . . . . . . . . Reused . | . . . . . . . . . . . . . . . . . . . . . . . Traps Extracted . | . . . . . . . . . . . . . . . . . . . . . . . Installed . | . . . . . . . . . . . . . . . . . . . . . . . Triggered . | . . . . . . . . . . . . . . . . . . . . . . . Machines | -11 -10 -10 -9 -9 -9 -8 -8 -8 -8 -8 -7 -6 -6 -6 -6 -5 -5 -4 -4 -3 -2 -2 ---------- Run | Scr Mat Min Mat Min Exi Min Mat Gar Mat Gar Fac Fac Gar Fac Gar Fac Gar Fac Gar Res Res Gar Machines Disabled 90 | . . . 2 3 7 1 10 1 5 2 8 9 2 11 3 6 1 9 3 4 . 3 Max in Single Turn 5 | . . . 1 2 3 1 1 1 2 1 5 4 1 3 1 2 1 3 2 1 . 1 Garrison Access 2 | . . . . . . . . . . . 1 . . 1 . . . . . . . . Garrison Relay 9 | . . . . . . . . . . 2 . . 2 . 2 . 1 . 1 . . 1 Machines Sabotaged . | . . . . . . . . . . . . . . . . . . . . . . . Garrisons Compromised . | . . . . . . . . . . . . . . . . . . . . . . . Overloaded Fab Kills . | . . . . . . . . . . . . . . . . . . . . . . . Fab Network Shutdowns 1 | . . . . . . . . . . . 1 . . . . . . . . . . . Hacking | -11 -10 -10 -9 -9 -9 -8 -8 -8 -8 -8 -7 -6 -6 -6 -6 -5 -5 -4 -4 -3 -2 -2 --------- Run | Scr Mat Min Mat Min Exi Min Mat Gar Mat Gar Fac Fac Gar Fac Gar Fac Gar Fac Gar Res Res Gar Machines Accessed 75 | . 8 2 12 . 2 . 14 . 7 . 7 3 . 6 . 5 . 3 . 5 1 . Terminals 42 | . 6 1 9 . . . 8 . 5 . 5 1 . 2 . 2 . . . 3 . . Fabricators 4 | . . . . . . . . . . . 2 . . . . 1 . . . 1 . . Repair Stations 7 | . . . . . . . 2 . 1 . . 1 . . . 1 . 1 . 1 . . Recycling Units 5 | . 2 . 1 . . . 1 . . . . . . 1 . . . . . . . . Scanalyzers 5 | . . . 2 . . . 2 . . . . . . . . . . 1 . . . . Garrison Access 9 | . . . . . . . 1 . 1 . . 1 . 3 . 1 . 1 . . 1 . Total Hacks 299 | . 35 3 68 . 2 . 68 . 29 . 18 9 . 16 . 19 . 18 . 13 1 . Successful 180 | . 20 1 47 . 2 . 42 . 20 . 6 3 . 10 . 10 . 11 . 7 1 . Failed 118 | . 15 2 20 . . . 26 . 9 . 12 6 . 6 . 9 . 7 . 6 . . Catastrophic 12 | . 1 . . . . . 3 . . . 3 . . 2 . . . 1 . 2 . . Database Lockouts 1 | . . . 1 . . . . . . . . . . . . . . . . . . . Manual 154 | . 23 3 44 . 1 . 36 . 18 . 4 2 . 10 . 6 . 2 . 5 . . Terminals 188 | . 31 2 55 . . . 44 . 21 . 13 3 . 5 . 6 . . . 8 . . Fabricators 12 | . . . . . . . . . . . 5 . . . . 6 . . . 1 . . Repair Stations 25 | . . . . . . . 4 . 4 . . 3 . . . 3 . 7 . 4 . . Recycling Units 11 | . 4 . 2 . . . 3 . . . . . . 2 . . . . . . . . Scanalyzers 30 | . . . 11 . . . 12 . . . . . . . . . . 7 . . . . Garrison Access 30 | . . . . . . . 5 . 4 . . 3 . 9 . 4 . 4 . . 1 . Terminal Hacks 63 | . 10 1 23 . 2 . 14 . 5 . 2 2 . . . 2 . . . 2 . . Record 1 | . . . . . 1 . . . . . . . . . . . . . . . . . Part Schematic 6 | . . . 4 . . . 2 . . . . . . . . . . . . . . . Robot Schematic 3 | . 3 . . . . . . . . . . . . . . . . . . . . . Robot Analysis 11 | . 3 . 5 . . . 3 . . . . . . . . . . . . . . . Prototype ID Bank 4 | . 1 . 1 . . . 2 . . . . . . . . . . . . . . . Open Door 1 | . . 1 . . . . . . . . . . . . . . . . . . . . Level Access Points 2 | . . . . . . . . . . . 1 . . . . 1 . . . . . . Branch Access Points 4 | . 1 . 1 . . . 1 . . . . . . . . . . . . 1 . . Machine Index 1 | . . . . . . . . . . . . . . . . . . . . 1 . . Terminal Index 3 | . . . 2 . . . . . 1 . . . . . . . . . . . . . Repair Station Index 1 | . . . . . . . . . 1 . . . . . . . . . . . . . Recycling Unit Index 1 | . . . 1 . . . . . . . . . . . . . . . . . . . Scanalyzer Index 2 | . . . 1 . . . 1 . . . . . . . . . . . . . . . Garrison Index 1 | . . . . . . . . . . . . 1 . . . . . . . . . . Alert Level 1 | . . . . . . . 1 . . . . . . . . . . . . . . . Unreport Threat 6 | . . . 1 . . . 3 . . . . 1 . . . 1 . . . . . . Locate Traps 2 | . 1 . 1 . . . . . . . . . . . . . . . . . . . Hauler Manifests 2 | . . . 1 . . . . . 1 . . . . . . . . . . . . . Registered Components 1 | . . . 1 . . . . . . . . . . . . . . . . . . . Zone Layout 9 | . 1 . 4 . . . 1 . 2 . 1 . . . . . . . . . . . EX-Prototype ID Bank 1 | . . . . . 1 . . . . . . . . . . . . . . . . . Fabricator Hacks 4 | . . . . . . . . . . . 2 . . . . 2 . . . . . . Load Schematic 2 | . . . . . . . . . . . 1 . . . . 1 . . . . . . Build 2 | . . . . . . . . . . . 1 . . . . 1 . . . . . . Repair Station Hacks 12 | . . . . . . . 2 . 3 . . . . . . 2 . 3 . 2 . . Scan Component 7 | . . . . . . . 1 . 2 . . . . . . 1 . 2 . 1 . . Repair 5 | . . . . . . . 1 . 1 . . . . . . 1 . 1 . 1 . . Recycling Unit Hacks 5 | . 2 . 1 . . . 1 . . . . . . 1 . . . . . . . . Report Inventory 5 | . 2 . 1 . . . 1 . . . . . . 1 . . . . . . . . Scanalyzer 25 | . . . 10 . . . 9 . . . . . . . . . . 6 . . . . Insert Component 12 | . . . 5 . . . 5 . . . . . . . . . . 2 . . . . Analyze 13 | . . . 5 . . . 4 . . . . . . . . . . 4 . . . . Garrison Access Hacks 10 | . . . . . . . 1 . 1 . . 1 . 3 . 1 . 2 . . 1 . Unlock Access 8 | . . . . . . . 1 . 1 . . 1 . 2 . 1 . 1 . . 1 . Seal Access 1 | . . . . . . . . . . . . . . 1 . . . . . . . . Coupler Status 1 | . . . . . . . . . . . . . . . . . . 1 . . . . Unauthorized Hacks 61 | . 8 . 13 . . . 15 . 11 . 2 . . 6 . 3 . . . 3 . . Terminals 42 | . 6 . 12 . . . 11 . 8 . . . . 2 . 1 . . . 2 . . Track 22 | . 2 . 6 . . . 6 . 5 . . . . 1 . 1 . . . 1 . . Assimilate 2 | . 1 . . . . . 1 . . . . . . . . . . . . . . . Botnet 11 | . 2 . 5 . . . 2 . 2 . . . . . . . . . . . . . Disrupt 1 | . . . . . . . 1 . . . . . . . . . . . . . . . Operators 6 | . 1 . 1 . . . 1 . 1 . . . . 1 . . . . . 1 . . Fabricators 4 | . . . . . . . . . . . 2 . . . . 1 . . . 1 . . Report 2 | . . . . . . . . . . . 1 . . . . 1 . . . . . . Overload 1 | . . . . . . . . . . . . . . . . . . . . 1 . . Download 1 | . . . . . . . . . . . 1 . . . . . . . . . . . Repair Stations 1 | . . . . . . . . . . . . . . . . 1 . . . . . . Mechanics 1 | . . . . . . . . . . . . . . . . 1 . . . . . . Recycling Units 5 | . 2 . 1 . . . 1 . . . . . . 1 . . . . . . . . Tunnel 5 | . 2 . 1 . . . 1 . . . . . . 1 . . . . . . . . Scanalyzers . | . . . . . . . . . . . . . . . . . . . . . . . Garrison Access 9 | . . . . . . . 3 . 3 . . . . 3 . . . . . . . . Broadcast 3 | . . . . . . . 1 . 1 . . . . 1 . . . . . . . . Reprogram 3 | . . . . . . . 1 . 1 . . . . 1 . . . . . . . . Watchers 3 | . . . . . . . 1 . 1 . . . . 1 . . . . . . . . Data Cores Recovered 2 | . . . 2 . . . . . . . . . . . . . . . . . . . Used 2 | . . . 2 . . . . . . . . . . . . . . . . . . . Hacking Detections 62 | . 6 1 10 . . . 14 . 7 . 6 3 . 4 . 4 . 3 . 4 . . Full Trace Events 16 | . 2 1 1 . . . 5 . 1 . 4 . . . . . . . . 2 . . Feedback Events 3 | . . . . . . . 2 . . . 1 . . . . . . . . . . . Corruption 3 | . . . . . . . 2 . . . 1 . . . . . . . . . . . Feedback Blocked . | . . . . . . . . . . . . . . . . . . . . . . . Robot Schematics Acquired 3 | . 3 . . . . . . . . . . . . . . . . . . . . . Robots Built 2 | . . . . . . . . . . . 1 . . . . 1 . . . . . . Matter 306 | . . . . . . . . . . . 153 . . . . 153 . . . . . . Time 80 | . . . . . . . . . . . 40 . . . . 40 . . . . . . Total Robot Build Rating 2 | . . . . . . . . . . . 1 . . . . 1 . . . . . . Part Schematics Acquired 17 | . . . 8 . . . 6 . . . 1 . . . . . . 2 . . . . Parts Built . | . . . . . . . . . . . . . . . . . . . . . . . Matter . | . . . . . . . . . . . . . . . . . . . . . . . Time . | . . . . . . . . . . . . . . . . . . . . . . . Total Part Build Rating . | . . . . . . . . . . . . . . . . . . . . . . . Parts Repaired 5 | . . . . . . . 1 . 1 . . . . . . 1 . 1 . 1 . . Time 384 | . . . . . . . 56 . 136 . . . . . . 108 . 62 . 22 . . Parts Recycled . | . . . . . . . . . . . . . . . . . . . . . . . Recycled Matter . | . . . . . . . . . . . . . . . . . . . . . . . Retrieved Matter . | . . . . . . . . . . . . . . . . . . . . . . . Retrieved Components . | . . . . . . . . . . . . . . . . . . . . . . . Parts Scanalyzed 10 | . . . 4 . . . 5 . . . . . . . . . . 1 . . . . Part Schematics Acquired 10 | . . . 4 . . . 4 . . . . . . . . . . 2 . . . . Parts Damaged 1 | . . . . . . . 1 . . . . . . . . . . . . . . . Bothacking | -11 -10 -10 -9 -9 -9 -8 -8 -8 -8 -8 -7 -6 -6 -6 -6 -5 -5 -4 -4 -3 -2 -2 ------------ Run | Scr Mat Min Mat Min Exi Min Mat Gar Mat Gar Fac Fac Gar Fac Gar Fac Gar Fac Gar Res Res Gar Used RIF Installer 6 | . . . . . . . . 1 . 1 . . 1 . 1 . 1 . 1 . . . Hotswap 1 | . . . . . . . . . . . . . . . . . . . 1 . . . Signal Jammer 1 | . . . . . . . . . . . . . 1 . . . . . . . . . Robot Detection 1 | . . . . . . . . . . . . . . . . . 1 . . . . . Watcher Feeds 1 | . . . . . . . . . . 1 . . . . . . . . . . . . Alert ID Control 1 | . . . . . . . . . . . . . . . 1 . . . . . . . Robots Hacked 20 | . . . . . . . . . . . . . . . . . . 8 . 7 . 5 Non-combat 12 | . . . . . . . . . . . . . . . . . . 6 . 6 . . Combat 8 | . . . . . . . . . . . . . . . . . . 2 . 1 . 5 Robot Hacks Applied 24 | . . . . . . . . . . . . . . . . . . 10 . 9 . 5 parse_system 1 | . . . . . . . . . . . . . . . . . . . . . . 1 find_chute 1 | . . . . . . . . . . . . . . . . . . 1 . . . . deconstruct_machine 2 | . . . . . . . . . . . . . . . . . . 2 . . . . map_walls 2 | . . . . . . . . . . . . . . . . . . 1 . 1 . . randomize_corridors 1 | . . . . . . . . . . . . . . . . . . . . 1 . . map_earth 1 | . . . . . . . . . . . . . . . . . . 1 . . . . drop_inventory 3 | . . . . . . . . . . . . . . . . . . 2 . 1 . . map_route 1 | . . . . . . . . . . . . . . . . . . . . 1 . . mark_security 1 | . . . . . . . . . . . . . . . . . . . . 1 . . find_garrison 2 | . . . . . . . . . . . . . . . . . . 1 . 1 . . link_fov 1 | . . . . . . . . . . . . . . . . . . . . 1 . . overwrite_iff 2 | . . . . . . . . . . . . . . . . . . . . . . 2 streamctrl_low 1 | . . . . . . . . . . . . . . . . . . . . 1 . . formatsys_high 5 | . . . . . . . . . . . . . . . . . . 2 . 1 . 2 Relay Couplers Released 15 | . . . . . . . . . . 3 . . 3 . 4 . 2 . 1 . . 2 Machine Destruction 15 | . . . . . . . . . . 3 . . 3 . 4 . 2 . 1 . . 2 Attached 6 | . . . . . . . . . . . . . 2 . 1 . . . 1 . . 2 Robots Rewired . | . . . . . . . . . . . . . . . . . . . . . . . Allies Hacked 2 | . . . . . . . . . . . . . . . . . . . . . . 2 Hacks Repelled . | . . . . . . . . . . . . . . . . . . . . . . . Allies | -11 -10 -10 -9 -9 -9 -8 -8 -8 -8 -8 -7 -6 -6 -6 -6 -5 -5 -4 -4 -3 -2 -2 -------- Run | Scr Mat Min Mat Min Exi Min Mat Gar Mat Gar Fac Fac Gar Fac Gar Fac Gar Fac Gar Res Res Gar Total Allies 16 | . 1 . . 1 . . . . 1 . 1 . . 1 . 1 . 2 . 2 . 6 Largest Group 3 | . 1 1 . 1 . . . . 1 . 1 . . 1 . 1 1 1 . 1 . 3 Highest-Rated Group 209 | . 10 10 . 31 . . . . 15 . 11 . . 26 . 11 11 47 . 64 . 209 Highest-Rated Ally 82 | . 10 10 . 31 . . . . 15 . 11 . . 26 . 11 11 47 . 64 . 82 Total Orders 7 | . . . . . 2 . . . . . 1 . . . . 2 1 . . 1 . . AID 5 | . . . . . . . . . . . 1 . . . . 2 1 . . 1 . . RETURN 2 | . . . . . 2 . . . . . . . . . . . . . . . . . Ally Attacks 37 | . . . . 4 . . . . 5 . . . . . . . . 9 . 4 . 15 Total Damage 1319 | . . . . 41 . . . . 119 . . . . . . . . 316 . 196 . 647 Kills 6 | . . . . . . . . . 1 . . . . . . . . 2 . . . 3 Allies Corrupted 1 | . . . . . . . . . . . . . . . . . . . . 1 . . Allies Melted . | . . . . . . . . . . . . . . . . . . . . . . . Field Lobotomies 1 | . . . . . . . . . . . . . . . . . . . . . . 1 Intel | -11 -10 -10 -9 -9 -9 -8 -8 -8 -8 -8 -7 -6 -6 -6 -6 -5 -5 -4 -4 -3 -2 -2 ------- Run | Scr Mat Min Mat Min Exi Min Mat Gar Mat Gar Fac Fac Gar Fac Gar Fac Gar Fac Gar Res Res Gar Robot Analysis Total 11 | . 3 . 5 . . . 3 . . . . . . . . . . . . . . . Derelict Logs Recovered 1 | . . 1 . . . . . . . . . . . . . . . . . . . . Drone Launches 2 | . . . . . 2 . . . . . . . . . . . . . . . . . Drone Recoveries 2 | . . . . . 2 . . . . . . . . . . . . . . . . . Exploration | -11 -10 -10 -9 -9 -9 -8 -8 -8 -8 -8 -7 -6 -6 -6 -6 -5 -5 -4 -4 -3 -2 -2 ------------- Run | Scr Mat Min Mat Min Exi Min Mat Gar Mat Gar Fac Fac Gar Fac Gar Fac Gar Fac Gar Res Res Gar Turns Passed 24295 | 81 764 1053 1505 1570 2522 993 2267 779 1733 550 1030 573 1160 1682 1146 795 882 1065 484 1176 152 333 Spaces Moved 11227 | 61 615 912 833 787 1057 446 939 311 608 240 443 228 492 702 417 321 336 480 222 543 98 136 Core 4 | 3 . . . . . . . . . . . . . . 1 . . . . . . . Treads 9415 | . . . 610 787 1057 446 939 311 608 240 443 228 492 702 416 321 336 480 222 543 98 136 Legs . | . . . . . . . . . . . . . . . . . . . . . . . Wheels 1808 | 58 615 912 223 . . . . . . . . . . . . . . . . . . . Hover . | . . . . . . . . . . . . . . . . . . . . . . . Flight . | . . . . . . . . . . . . . . . . . . . . . . . Fastest Speed 50 | 50 80 90 95 160 160 180 180 186 186 190 190 190 190 190 190 190 190 165 165 145 145 145 Average Speed 166 | 86 86 98 144 175 179 197 189 186 189 190 190 190 190 190 190 190 190 170 165 151 145 145 Slowest Speed 350 | 90 90 100 160 180 220 200 205 186 190 190 190 190 190 190 350 190 190 190 165 165 145 145 Overloaded Moves . | . . . . . . . . . . . . . . . . . . . . . . . Propulsion Burnouts . | . . . . . . . . . . . . . . . . . . . . . . . Robots Hopped . | . . . . . . . . . . . . . . . . . . . . . . . Cave-ins Triggered . | . . . . . . . . . . . . . . . . . . . . . . . Exploration Rate (%) 53 | 4 99 96 80 97 91 94 93 72 63 52 12 10 79 25 69 11 62 15 57 24 5 23 Regions Visited 22 Branch Regions 4 Pre-discovered Areas 6 | . 2 . 1 . 1 . 1 . . . . . . 1 . . . . . . . . Known Exits Taken 12 | . 1 1 1 . . . 1 . 1 . 1 1 . 1 . 1 . 1 . 1 1 . Unknown Exits Taken 4 | 1 . . . 1 1 1 . . . . . . . . . . . . . . . . Scrap Searched 3 | . . 1 . 1 . 1 . . . . . . . . . . . . . . . . Spaces Dug 239 | . . . 6 11 . . 89 61 29 . . . . . 34 . . . . 9 . . Terrain Destroyed 2272 | . . 37 73 124 14 71 262 137 91 28 65 99 119 193 96 174 72 143 80 308 . 86 Melee . | . . . . . . . . . . . . . . . . . . . . . . . Projectile 148 | . . . . . 3 23 33 7 27 3 3 1 8 5 8 2 8 3 3 6 . 5 AOE 2124 | . . 37 73 124 11 48 229 130 64 25 62 98 111 188 88 172 64 140 77 302 . 81 Terrain Rammed . | . . . . . . . . . . . . . . . . . . . . . . . Walls Destroyed . | . . . . . . . . . . . . . . . . . . . . . . . Machines Disabled . | . . . . . . . . . . . . . . . . . . . . . . . Actions | -11 -10 -10 -9 -9 -9 -8 -8 -8 -8 -8 -7 -6 -6 -6 -6 -5 -5 -4 -4 -3 -2 -2 --------- Run | Scr Mat Min Mat Min Exi Min Mat Gar Mat Gar Fac Fac Gar Fac Gar Fac Gar Fac Gar Res Res Gar Total 15377 | 77 762 1001 1039 921 1557 514 1282 467 1120 301 569 329 643 948 721 484 499 691 307 793 108 244 Wait 1846 | 1 68 27 59 39 319 8 114 107 366 19 17 37 2 95 214 117 43 89 37 48 . 20 Move 11202 | 60 614 911 832 786 1056 445 938 309 607 238 442 228 490 701 415 320 334 480 220 542 98 136 Hop . | . . . . . . . . . . . . . . . . . . . . . . . Pick Up 69 | 3 7 1 6 6 15 2 4 . 1 2 . . 2 2 1 4 1 6 1 1 1 3 Fast Attach 112 | 6 2 2 12 9 21 10 7 . 5 . 3 1 1 . 12 3 . 3 1 10 3 1 Attach 24 | . 1 1 1 1 3 . 3 . 1 . . 1 1 . . . . 5 2 1 1 2 Detach 12 | . . . 2 . . 1 3 . . . . 1 . . . . . 2 2 1 . . Swap 76 | 2 3 3 12 5 3 . 8 1 2 . 2 1 . 2 3 3 2 4 1 13 1 5 Drop 146 | 1 9 3 16 12 35 12 11 . 4 1 4 1 2 1 3 6 1 7 1 9 4 3 Fire 1265 | 4 48 43 54 37 93 36 136 38 65 35 60 41 87 89 44 28 68 68 34 115 . 42 Melee . | . . . . . . . . . . . . . . . . . . . . . . . Ram 1 | . 1 . . . . . . . . . . . . . . . . . . . . . Kick . | . . . . . . . . . . . . . . . . . . . . . . . Crush 7 | . . . . . . . . . 3 . 1 . . 1 . . . . . 2 . . Escape Stasis 44 | . . . . . . . . 4 . . . . 22 . 12 . 6 . . . . . Rewire . | . . . . . . . . . . . . . . . . . . . . . . . Trap . | . . . . . . . . . . . . . . . . . . . . . . . Miscellaneous 573 | . 9 10 45 26 12 . 58 8 66 6 40 18 36 57 17 3 44 27 8 51 . 32 Route ------- -11/Scrapyard -10/Materials (discovered 5 exits: *Mat x3 / *Min x2) -10/Mines (discovered 2 exits: *Mat x2) -9/Materials (discovered 5 exits: *Mat x2 / *Min / *Sto x2) -9/Mines (discovered 3 exits: *Mat x2 / *Exi) -9/Exiles (discovered 2 exits: [*Min x2]) -8/Mines (discovered 2 exits: *Mat x2) -8/Materials (discovered 4 exits: *Fac x3 / Gar) -8/Garrison (discovered 2 exits: *Mat x2) -8/Materials (discovered 2 exits: *Fac / Gar) -8/Garrison -7/Factory (discovered 4 exits: *Fac x4) -6/Factory -6/Garrison (discovered 3 exits: *Fac x3) -6/Factory (discovered 3 exits: *Fac / Gar / Gar) -6/Garrison (discovered 3 exits: *Fac x3) -5/Factory (discovered 5 exits: Fac x4 / Gar) -5/Garrison (discovered 2 exits: *Fac x2) -4/Factory (discovered 2 exits: *Res / Gar) -4/Garrison (discovered 2 exits: *Res x2) -3/Research (discovered 3 exits: *Res / Tes x2) -2/Research -2/Garrison History --------- Turn | Location | Event 8 | -11/Scrapyard | Upgraded with Propulsion slot (x1) 8 | -11/Scrapyard | Upgraded with Utility slot (x1) 8 | -11/Scrapyard | Upgraded with Weapon slot (x1) 11 | -11/Scrapyard | Discovered new exit (range 16) 82 | -11/Scrapyard | Entered Materials 230 | -10/Materials | Discovered new exit (range 14) 302 | -10/Materials | Build established: Mutant 343 | -10/Materials | Reached level 2 349 | -10/Materials | Discovered new exit (range 10) 360 | -10/Materials | Upgraded with Utility slot (x1) 360 | -10/Materials | Upgraded with Weapon slot (x1) 616 | -10/Materials | Discovered new exit (range 8) 644 | -10/Materials | Identified exit to Mines 662 | -10/Materials | Build established: Tank 702 | -10/Materials | Discovered new exit (range 13) 759 | -10/Materials | Discovered new exit (range 16) 846 | -10/Materials | Entered Mines 846 | -10/Mines | Accompanied by 1 ally 849 | -10/Mines | Discovered new exit (range 8) 885 | -10/Mines | Received a Rocket Launcher from a helpful Derelict 886 | -10/Mines | Met a Derelict bent on vengeance 964 | -10/Mines | Assembled infested the area 969 | -10/Mines | Assisted by a Guerilla fighting off Assembled 971 | -10/Mines | Met a Derelict who couldn't figure out how to use a Trap Extractor 1055 | -10/Mines | Identified exit to Materials 1382 | -10/Mines | Build established: Mutant 1570 | -10/Mines | Reached level 3 1578 | -10/Mines | Upgraded with Utility slot (x1) 1865 | -10/Mines | Build established: Tank 1899 | -10/Mines | Entered Materials 1901 | -9/Materials | Reached level 4 1903 | -9/Materials | Upgraded with Utility slot (x1) 1911 | -9/Materials | Identified exit to Mines 1911 | -9/Materials | Identified exit to Storage 2113 | -9/Materials | Reached level 5 2257 | -9/Materials | Discovered new exit (range 11) 2497 | -9/Materials | Build established: Scavenger-Tank 2663 | -9/Materials | Discovered new exit (range 8) 2790 | -9/Materials | Reached level 6 2832 | -9/Materials | Build established: Tank 3113 | -9/Materials | Central database locked down 3404 | -9/Materials | Entered Mines 3503 | -9/Mines | Upgraded with Power slot (x1) 3579 | -9/Mines | Reached level 7 3581 | -9/Mines | Upgraded with Utility slot (x1) 3706 | -9/Mines | Destroyed 7 combat bots 3734 | -9/Mines | Discovered new exit (range 5) 3737 | -9/Mines | Received a Mining Laser from a helpful Derelict 3756 | -9/Mines | Discovered new exit (range 5) 4098 | -9/Mines | Reached level 8 4130 | -9/Mines | Upgraded with Utility slot (x1) 4322 | -9/Mines | Found a damaged Exp. Sensor Array with a note attached 4326 | -9/Mines | Found Prototype Device 4326 | -9/Mines | Identified Exp. Sensor Array 4553 | -9/Mines | Deemed a non-threat by the Exiles lab entrance 4553 | -9/Mines | Discovered new exit (range 5) 4974 | -9/Mines | Entered Exiles 4998 | -9/Exiles | Discovered new exit (range 16) 5063 | -9/Exiles | Met 8R-AWN 5088 | -9/Exiles | Met EX-HEX 5153 | -9/Exiles | Met EX-DEC 5189 | -9/Exiles | Learned location of Zion (-7) 5227 | -9/Exiles | Met EX-BIN 5243 | -9/Exiles | Build established: Mutant 5306 | -9/Exiles | Aligned with FarCom system 5308 | -9/Exiles | Given EX-Vault access code 5353 | -9/Exiles | Opened EX-Vault 5368 | -9/Exiles | Found Army-in-a-Box 5462 | -9/Exiles | Warned to stay clear of 0b10 Research branches 5885 | -9/Exiles | Attacked by the Exiles 6003 | -9/Exiles | Core integrity fell below 50% 6020 | -9/Exiles | Destroyed 8R-AWN 6028 | -9/Exiles | Found Prototype Device 6028 | -9/Exiles | Identified AS-neutralizer No. 17b 6117 | -9/Exiles | Found Prototype Ballistic Gun 6117 | -9/Exiles | Identified 8R-AWN's Boregun 6158 | -9/Exiles | Found Prototype Protection 6336 | -9/Exiles | Build established: Scavenger-Mutant 6434 | -9/Exiles | Destroyed EX-HEX 6483 | -9/Exiles | Destroyed EX-DEC 6522 | -9/Exiles | Destroyed EX-BIN 6553 | -9/Exiles | Found Prototype Device 6553 | -9/Exiles | Identified System Purifier 6795 | -9/Exiles | Identified 8R-AWN's Armor/EX 6948 | -9/Exiles | Found Prototype Processor 7067 | -9/Exiles | Found Cloak of Protection 7082 | -9/Exiles | Found Field Lobotomy Kit 7360 | -9/Exiles | Build established: Scavenger-Tank 7480 | -9/Exiles | Discovered new exit (range 10) 7496 | -9/Exiles | Stole two prototypes: Cloak of Protection, Field Lobotomy Kit 7496 | -9/Exiles | Entered Mines 7558 | -8/Mines | 99-TNT came to Exiles' defense 7588 | -8/Mines | Core integrity fell below 20% 7593 | -8/Mines | Destroyed 99-TNT 7593 | -8/Mines | Reached level 9 7600 | -8/Mines | Found Prototype Launcher 7614 | -8/Mines | Identified 99-TNT's Nukerbomber 7624 | -8/Mines | Found Prototype Device 7624 | -8/Mines | Identified Exp. Shock Absorption System 7648 | -8/Mines | Upgraded with Weapon slot (x1) 7852 | -8/Mines | Build established: Scavenger-Mutant 7867 | -8/Mines | Discovered new exit (range 7) 8196 | -8/Mines | Discovered new exit (range 12) 8489 | -8/Mines | Entered Materials 8490 | -8/Materials | Core integrity fell below 50% 8490 | -8/Materials | Core integrity fell below 20% 8491 | -8/Materials | Reached level 10 8753 | -8/Materials | Reached level 11 8754 | -8/Materials | Upgraded with Utility slot (x1) 9295 | -8/Materials | Reached level 12 9452 | -8/Materials | Discovered new exit (range 9) 9758 | -8/Materials | Upgraded with Propulsion slot (x1) 9948 | -8/Materials | Discovered new exit (range 16) 10289 | -8/Materials | Discovered new exit (range 16) 10315 | -8/Materials | Identified Exp. Targeting Computer 10512 | -8/Materials | Repaired Rnf. Fission Core 10525 | -8/Materials | Reached level 13 10697 | -8/Materials | Identified exit to Garrison 10756 | -8/Materials | Entered Garrison 10802 | -8/Garrison | Triggered checkpoint 10928 | -8/Garrison | Triggered checkpoint 11084 | -8/Garrison | Triggered checkpoint 11124 | -8/Garrison | Destroyed 7 combat bots 11226 | -8/Garrison | Triggered checkpoint 11284 | -8/Garrison | Discovered new exit (range 16) 11481 | -8/Garrison | Discovered new exit (range 14) 11507 | -8/Garrison | Identified exit to Materials 11526 | -8/Garrison | Installed Relay Interface Framework 11535 | -8/Garrison | Entered Materials 11760 | -8/Materials | Identified exit to Garrison 11773 | -8/Materials | Garrison activated, responded to threat 11774 | -8/Materials | Reached level 14 11939 | -8/Materials | Upgraded with Utility slot (x1) 12463 | -8/Materials | Repaired Broken System Purifier 12735 | -8/Materials | First assault squad dispatched 12750 | -8/Materials | Discovered new exit (range 4) 12950 | -8/Materials | Identified exit to Factory 13268 | -8/Materials | Entered Garrison 13278 | -8/Garrison | Expanded RIF knowledge: Patrol Navigation 13334 | -8/Garrison | Triggered checkpoint 13388 | -8/Garrison | Garrison Relay disabled 13497 | -8/Garrison | Triggered checkpoint 13497 | -8/Garrison | Triggered checkpoint 13500 | -8/Garrison | Triggered checkpoint 13654 | -8/Garrison | Discovered exit to Factory (range 12) 13728 | -8/Garrison | Triggered checkpoint 13754 | -8/Garrison | Garrison Relay disabled 13818 | -8/Garrison | Entered Factory 13820 | -7/Factory | Reached level 15 13915 | -7/Factory | Identified exit to Factory 14212 | -7/Factory | Reached level 16 14225 | -7/Factory | Local fabrication network quarantined 14252 | -7/Factory | Fabricated M-13 Machinist (x1) 14848 | -7/Factory | Entered another Factory area 14850 | -6/Factory | Reached level 17 14870 | -6/Factory | Upgraded with Utility slot (x1) 15126 | -6/Factory | Reached level 18 15198 | -6/Factory | First assault squad dispatched 15421 | -6/Factory | Identified exit to Garrison 15421 | -6/Factory | Entered Garrison 15431 | -6/Garrison | Triggered checkpoint 15545 | -6/Garrison | Triggered checkpoint 15545 | -6/Garrison | Reached level 19 15547 | -6/Garrison | Upgraded with Utility slot (x1) 15580 | -6/Garrison | Triggered checkpoint 15799 | -6/Garrison | Discovered new exit (range 8) 15810 | -6/Garrison | Identified exit to Factory 15838 | -6/Garrison | Triggered checkpoint 15881 | -6/Garrison | Garrison Relay disabled 16074 | -6/Garrison | Discovered exit to Factory (range 12) 16194 | -6/Garrison | Triggered checkpoint 16317 | -6/Garrison | Discovered exit to Factory (range 8) 16342 | -6/Garrison | Expanded RIF knowledge: Signal Jamming 16406 | -6/Garrison | Triggered checkpoint 16470 | -6/Garrison | Garrison Relay disabled 16581 | -6/Garrison | Entered Factory 16853 | -6/Factory | Identified exit to Garrison 17281 | -6/Factory | First assault squad dispatched 17590 | -6/Factory | Reached level 20 18109 | -6/Factory | Destroyed 7 combat bots 18174 | -6/Factory | Discovered new exit (range 11) 18191 | -6/Factory | Identified exit to Factory 18261 | -6/Factory | Identified exit to Garrison 18263 | -6/Factory | Entered Garrison 18569 | -6/Garrison | Triggered checkpoint 18619 | -6/Garrison | Triggered checkpoint 18669 | -6/Garrison | Triggered checkpoint 18752 | -6/Garrison | Triggered checkpoint 18793 | -6/Garrison | Garrison Relay disabled 18832 | -6/Garrison | Discovered exit to Factory (range 15) 18992 | -6/Garrison | Discovered exit to Factory (range 10) 19058 | -6/Garrison | Triggered checkpoint 19142 | -6/Garrison | Discovered exit to Factory (range 9) 19168 | -6/Garrison | Expanded RIF knowledge: Alert ID Control 19228 | -6/Garrison | Triggered checkpoint 19288 | -6/Garrison | Garrison Relay disabled 19288 | -6/Garrison | Reached level 21 19409 | -6/Garrison | Entered Factory 19674 | -5/Factory | Identified exit to Factory 19980 | -5/Factory | Repaired Exp. Matter Compressor? 20005 | -5/Factory | Core integrity fell below 50% 20009 | -5/Factory | First assault squad dispatched 20039 | -5/Factory | Core integrity fell below 20% 20039 | -5/Factory | Reached level 22 20160 | -5/Factory | Fabricated M-13 Machinist? 20168 | -5/Factory | Identified exit to Garrison 20204 | -5/Factory | Entered Garrison 20204 | -5/Garrison | Accompanied by 1 ally 20216 | -5/Garrison | Expanded RIF knowledge: Robot Detection 20274 | -5/Garrison | Triggered checkpoint 20308 | -5/Garrison | Destroyed 7 combat bots 20477 | -5/Garrison | Triggered checkpoint 20508 | -5/Garrison | Triggered checkpoint 20543 | -5/Garrison | Triggered checkpoint 20578 | -5/Garrison | Triggered checkpoint 20727 | -5/Garrison | Discovered exit to Factory (range 15) 20730 | -5/Garrison | Triggered checkpoint 21050 | -5/Garrison | Discovered exit to Factory (range 12) 21086 | -5/Garrison | Entered Factory 21088 | -4/Factory | Reached level 23 21155 | -4/Factory | Core integrity fell below 50% 21317 | -4/Factory | Reached level 24 21317 | -4/Factory | Upgraded with Utility slot (x1) 21379 | -4/Factory | Repaired Broken Hvy. Antimatter Reactor 21679 | -4/Factory | Spotted B-86 Titan 21855 | -4/Factory | Destroyed B-86 Titan 22037 | -4/Factory | Discovered new exit (range 11) 22055 | -4/Factory | Identified exit to Research 22151 | -4/Factory | Identified exit to Garrison 22151 | -4/Factory | Entered Garrison 22153 | -4/Garrison | Reached level 25 22166 | -4/Garrison | Upgraded with Utility slot (x1) 22202 | -4/Garrison | Triggered checkpoint 22202 | -4/Garrison | Spotted B-86 Titan 22202 | -4/Garrison | Triggered checkpoint 22215 | -4/Garrison | Triggered checkpoint 22226 | -4/Garrison | Core integrity fell below 20% 22226 | -4/Garrison | Destroyed B-86 Titan 22254 | -4/Garrison | Destroyed 21 combat bots 22333 | -4/Garrison | Discovered exit to Research (range 9) 22365 | -4/Garrison | Build established: Scavenger-Skirmisher 22516 | -4/Garrison | Triggered checkpoint 22556 | -4/Garrison | Garrison Relay disabled 22601 | -4/Garrison | Discovered exit to Research (range 11) 22625 | -4/Garrison | Expanded RIF knowledge: Hotswap 22635 | -4/Garrison | Entered Research 22636 | -3/Research | Core integrity fell below 50% 22636 | -3/Research | Core integrity fell below 20% 22637 | -3/Research | Reached level 26 22637 | -3/Research | Reached level 27 22675 | -3/Research | Found Prototype Processor 22675 | -3/Research | Identified Spectral Analyzer 22843 | -3/Research | Repaired Imp. Shield Generator 23130 | -3/Research | Identified exit to Testing 23189 | -3/Research | Reached level 28 23191 | -3/Research | Upgraded with Utility slot (x1) 23309 | -3/Research | Spotted B-86 Titan 23314 | -3/Research | Destroyed B-86 Titan 23385 | -3/Research | First assault squad dispatched 23467 | -3/Research | Garrison activated, responded to threat 23530 | -3/Research | Destroyed 11 combat bots 23767 | -3/Research | Reached level 29 23801 | -3/Research | Discovered new exit (range 9) 23809 | -3/Research | Identified exit to Research 23811 | -3/Research | Entered another Research area 23812 | -2/Research | Core integrity fell below 50% 23812 | -2/Research | Core integrity fell below 20% 23848 | -2/Research | Upgraded with Weapon slot (x1) 23963 | -2/Research | Identified exit to Garrison 23963 | -2/Research | Entered Garrison 23965 | -2/Garrison | Reached level 30 23988 | -2/Garrison | Triggered checkpoint 24003 | -2/Garrison | P-80 Master assimilated allied G-73 Enforcer 24030 | -2/Garrison | Assimilated P-80 Master with FLK Orb 24134 | -2/Garrison | Master 9a assimilated hostile G-73 Enforcer 24148 | -2/Garrison | Garrison Relay disabled 24250 | -2/Garrison | Spotted B-90 Cyclops 24258 | -2/Garrison | Spotted B-90 Cyclops 24276 | -2/Garrison | Destroyed B-90 Cyclops 24294 | -2/Garrison | Triggered checkpoint 24296 | -2/Garrison | Destroyed by P-80 Master with Gamma Rifle Last Messages --------------- 24258_ B-90 Cyclops suffers critical hit. 24261_ B-90 Cyclops activates siege mode. 24261_ Terminator 9a destroyed. 24264_ Activated siege mode. 24266_ Jacked B-90 Cyclops... >>parse_system Reading system data... New IDs: Adv. Power Amplifier 24268_ B-90 Cyclops IFF system glitched. 24275_ The unstable cave ceiling collapses. 24276_ Destroyed Med. Reflective Plating. 24276_ B-90 Cyclops destroyed. 24279_ The unstable cave ceiling collapses. 24283_ B-90 Cyclops exits siege mode. 24283_ The unstable cave ceiling collapses. 24286_ Destroyed Adv. Power Amplifier. 24293_ The unstable cave ceiling collapses. 24294_ Destroyed Adv. Heat Sink. 24295_ B-90 Cyclops activates siege mode. Map ----- +----------------------------------------------------+ | ???????????????#?#?###?# ##### ###############?# | | ?????????????#?######### ##### ################? | | ??????????#??##?## ### ##### ### !!#####??#### | | ???????????#?#? ? ##### ########### | | ??????????#?## ######### ##### ###### #######?## | | ???????????##??#?####### ##### ###### ########## | | ???????????### ######### ##### ###### #########? | | ?????????##?## ######### ##### ###### ######?### | | ????????#???## #####?### ##### ###### ##?#?##### | | ??????????#### ######?g" ##### #### ########## | | ????????#???## #### #g" # # ! # ? ? ## | | ???????????##? ####?## " ##### = [###?########### | | ??????????#### #### #### ### # ############# # | | ????????#### # ######### #####!*############# # | | ???????##?#### ^ !* !== [ # | | ???????##### # |* ! =! # | | ???????##??### ^ !!= * # | | ???????##?## # ####### ########"############### | | ????????###### ####?## ######## ############ #? | | ??????#??##### ####### ######## ############??# | | ????????##? # # # ##?##### ###########??## | | ??????????? ## ####### ######## ############ ## | | ???????##?#??# ? #?### == ####### ######?? ? | | ??????##b? ## ## # =* ### # ####?#?# ? | | ??????##""""# [[% ####### ? ?? | | ????? ? [=@%! !!##### ? "?? | | ?????? ?? [= # ?"""? | | ?????? ?? p |*[= ####? ?? | | ???????#?? BB #?### ? | | ???????#? ### ## # BB ####? ????? | | ??????? ?? b ######## ######??#""? | | ?????? ? ?? ? ???######## #########???? | | ??????? ? ??? " #?#?##?## #####?##?#???? | | ??????? ? ????? ? ?? ####### ###?##?##??????# | | ???????? ??#?? #??? #?#########Y####?####?#????? | | ????????? ? ??? ??### #?##??#???#####?##?##??????? | | ????????? ? ?? ##?# ??#??????? #?##?#???????? | | ?????????? ?? ?? ? ??? ? ? ?##? ?#??#?#???????? | | ?????????? ? ##??####?#?##?? ? ##??#????????? | | ????????????#?g ?????##?#?# ??# ??? ?????????????? | | ??????????b?##g?g#?#??###?# #?#?? ???????????????? | | ?????????????# ? ????##?##??#?? ??????????????? | | ??????????????????##?#??#?#?#?? ? ?????????????? | | ????????????????g###??#?#?#??????????????????????? | | ???????????????????????##????##??Y???????????????? | | ?????????????????????????????????????????????????? | | ?????????????????????????????????????????????????? | | ?????????????????????????????????????????????????? | | ?????????????????????????????????????????????????? | | ?????????????????????????????????????????????????? | +----------------------------------------------------+ Best States ------------- Heat Dissipation 107 Energy Generation 50 Energy Capacity 1080 Matter Stores 800 Matter Capacity 800 Sight Range 17 Robot Scan Range 20 Terrain Scan Range 20 Terrain Scan Density 110 Jamming Range 16 Cloak Strength 5 Base Temperature (-) 100 Heat Shielding 75 Armor Coverage 1000 Resistance: TH 30 Resistance: EX 90 Weapon Cycling 25 Evasion (%) 44 Targeting Accuracy 6 Launcher Accuracy 40 Armor Integrity Analysis 50 Recoil Reduction 3 Matter Filtering 50 Salvage Targeting 1 Offensive Hacking 10 Defensive Hacking 10 Relay Coupler Types 139 Relay Coupler Value 5 Item Schematics ----------------- Bore Cannon | -9/Materials | Scanalyzed Rocket Launcher | -9/Materials | Scanalyzed Imp. EM Shotgun | -9/Materials | Scanalyzed Imp. Medium Laser | -9/Materials | Scanalyzed Trap Extractor | -9/Materials | Hacked Datajack | -9/Materials | Hacked Disposable Heat Sink | -9/Materials | Hacked Autogun | -9/Materials | Hacked Lrn. Tractor Beam | -8/Materials | Hacked Arm. Treads | -8/Materials | Hacked Exp. Targeting Computer | -8/Materials | Scanalyzed Exp. Matter Compressor | -8/Materials | Scanalyzed Adv. Weapon Cycler | -8/Materials | Scanalyzed System Purifier | -8/Materials | Scanalyzed Coolant Injector | -7/Factory | Downloaded Exp. Shock Absorption System | -4/Factory | Scanalyzed Exp. Cooling System | -4/Factory | Scanalyzed Robot Schematics ------------------ O-16 Technician | -10/Materials | Hacked M-13 Machinist | -10/Materials | Hacked G-34 Mercenary | -10/Materials | Hacked Fabricated ------------ M-13 Machinist | x1 | -7/Factory M-13 Machinist | x1 | -5/Factory Alien Tech Used ----------------- None Achievements -------------- None Challenges ------------ None RPGLIKE | -11 -10 -10 -9 -9 -9 -8 -8 -8 -8 -8 -7 -6 -6 -6 -6 -5 -5 -4 -4 -3 -2 -2 --------- Run | Scr Mat Min Mat Min Exi Min Mat Gar Mat Gar Fac Fac Gar Fac Gar Fac Gar Fac Gar Res Res Gar Levels Raised 29 | . 1 1 3 2 . 1 4 . 1 . 2 2 1 1 1 1 . 2 1 4 . 1 XP Earned 47397 | 3000 2459 850 4898 2859 243 1175 5756 1030 917 618 2640 2869 1571 1362 779 1577 1328 2946 1552 4584 1399 985 XP Spent 46360 | 2800 1600 1175 3390 4395 . 1280 4650 . 2600 . 1575 2900 3200 1850 . . . 3500 3800 4880 1400 1365 Upgrades 69 | 9 2 3 7 6 . 3 12 . 1 . 5 1 1 2 . . . 1 1 7 1 7 Power Slot 1 | . . . . 1 . . . . . . . . . . . . . . . . . . Propulsion Slot 2 | 1 . . . . . . 1 . . . . . . . . . . . . . . . Utility Slot 13 | 1 1 1 1 2 . . 1 . 1 . . 1 1 . . . . 1 1 1 . . Weapon Slot 4 | 1 1 . . . . 1 . . . . . . . . . . . . . . 1 . Core Integrity 21 | . . 1 2 3 . 2 . . . . . . . . . . . . . 6 . 7 Heat Dissipation 3 | . . 1 2 . . . . . . . . . . . . . . . . . . . Energy Generation 1 | . . . . . . . . . . . 1 . . . . . . . . . . . Mass Support 1 | . . . . . . . . . . . 1 . . . . . . . . . . . Inventory Capacity 5 | 2 . . 2 . . . . . . . . . . 1 . . . . . . . . Sight Range 1 | 1 . . . . . . . . . . . . . . . . . . . . . . Sensor Range 10 | . . . . . . . 9 . . . 1 . . . . . . . . . . . Terrain Scan Density 1 | 1 . . . . . . . . . . . . . . . . . . . . . . Hack Attack % 2 | 1 . . . . . . . . . . 1 . . . . . . . . . . . Hack Defense % 2 | 1 . . . . . . . . . . 1 . . . . . . . . . . . EX Damage % 2 | . . . . . . . 1 . . . . . . 1 . . . . . . . . Protomatter Created 4744 | . 88 41 176 259 96 . 426 74 494 53 293 147 396 564 157 73 352 216 168 558 . 113 Integrity Restored 12276 | . 176 219 925 442 288 . 1278 180 1473 117 846 381 756 1157 339 60 975 579 180 1161 . 744 Core 10234 | . 143 201 553 213 288 . 1278 180 1136 117 604 381 335 776 330 60 975 579 180 1161 . 744 Parts 2042 | . 33 18 372 229 . . . . 337 . 242 . 421 381 9 . . . . . . . Protomatter Decayed 376 | . 28 173 3 6 . . . 14 . . . . . 96 . . 27 . . 29 . . Game ------ Seed MiningMediumField Manual? 0 Play Time 03:24:47 Cumulative 324.2 hours Start 2020.10.05 @ 21:46:02 End 2020.10.06 @ 21:07:06 Sessions 6 Manual Loads 0 Difficulty Rogue Special Mode Winter2019/RPGLIKE Game No. 127 Rogue 127 Adventurer 0 Explorer 0 Win Type - Total 4 Types 3/0/0/1/0/0/0/0/0 Lore% 84 Gallery% 90 Achievement% 72 Wizard Run 0 Options --------- ASCII 0 Keyboard 0 Movement Numpad Keybinds 0 Fullscreen 1 Font 18/SmallcapsGlow Map View 76x50 Tactical HUD 1 Map Filters NONE Filters NONE Steam 1 RUN: c8baf1b4-687c-4f0f-9911-b13f52b297c2